lending/lending_fUSD_20241120
["ID","MTS","AMOUNT","RATE_DAILY","PERIOD"]
[342786416,1732140761597,-2531.55,0.00056712,120]
[342786417,1732140761606,-1396.17,0.00056712,120]
[342786418,1732140761618,-578.1,0.00056712,120]
[342786419,1732140761627,-699.76,0.00056712,120]
[342786420,1732140761637,-1833.67,0.00056712,120]
[342786421,1732140761647,-1045.04,0.00056712,120]
[342786422,1732140761657,-500.0,0.00056712,120]
[342786423,1732140761667,-500.0,0.00056712,120]
[342786424,1732140761676,-671.36,0.00056712,120]
[342786425,1732140761686,-1250.43,0.00056712,120]
[342786426,1732140761696,-618.56,0.00056712,120]
[342786427,1732140761705,-1529.97,0.00056712,120]
[342786428,1732140761714,-7124.81,0.00056712,120]
[342786429,1732140761723,-916.63,0.00056712,120]
[342786430,1732140761733,-1979.2,0.00056712,120]
[342786431,1732140761742,-1449.91,0.00056712,120]
[342786432,1732140761751,-1114.64,0.00056712,120]
[342786433,1732140761760,-500.0,0.00056712,120]
[342786434,1732140761770,-1049.5,0.00056712,120]
[342786435,1732140761779,-500.0,0.00056712,120]
[342786436,1732140761788,-500.0,0.00056712,120]
[342786437,1732140761798,-500.0,0.00056712,120]
[342786438,1732140761807,-2536.25,0.00056712,120]
[342786439,1732140761815,-3951.61,0.00056712,120]
[342786440,1732140761824,-2472.73,0.00056712,120]
[342786441,1732140761834,-500.0,0.00056712,120]
[342786442,1732140761843,-500.0,0.00056712,120]
[342786443,1732140761853,-500.0,0.00056712,120]
[342786444,1732140761862,-500.0,0.00056712,120]
[342786445,1732140761871,-786.55,0.00056712,120]
[342786446,1732140761881,-500.0,0.00056712,120]
[342786447,1732140761890,-4870.15,0.00056712,120]
[342786448,1732140761900,-883.86,0.00056712,120]
[342786449,1732140761911,-2000.0,0.00056712,30]
[342786450,1732140761920,-500.0,0.00056712,120]
[342786451,1732140761930,-4533.42,0.00056712,120]
[342786452,1732140761940,-646.10662128,0.00056712,120]
[342786453,1732140761952,-636.47,0.00056712,120]
[342786454,1732140761962,-851.5,0.00056712,120]
[342786455,1732140761971,-1816.21,0.00056712,120]
[342786456,1732140761981,-500.0,0.00056712,120]
[342786457,1732140761990,-616.92,0.00056712,120]
[342786458,1732140762001,-1014.23,0.00056712,120]
[342786459,1732140762011,-6811.17,0.00056712,120]
[342786460,1732140762021,-500.0,0.00056712,120]
[342786461,1732140762032,-500.0,0.00056712,120]
[342786462,1732140762042,-500.0,0.00056712,120]
[342786463,1732140762051,-500.0,0.00056712,120]
[342786464,1732140762062,-1332.89,0.00056712,120]
[342786465,1732140762072,-753.95,0.00056712,120]
[342786466,1732140762081,-10722.81,0.00056712,120]
[342786467,1732140762091,-500.0,0.00056712,120]
[342786468,1732140762100,-1359.85,0.00056712,120]
[342786469,1732140762110,-2324.44,0.00056712,120]
[342786470,1732140762121,-500.0,0.00056712,120]
[342786471,1732140762130,-535.04,0.00056712,120]
[342786472,1732140762139,-500.0,0.00056712,120]
[342786473,1732140762153,-4406.16,0.00056712,120]
[342786474,1732140762165,-500.0,0.00056712,120]
[342786475,1732140762175,-1128.91,0.00056712,120]
[342786476,1732140762185,-665.96,0.00056712,120]
[342786477,1732140762194,-980.99,0.00056712,120]
[342786478,1732140762203,-580.64,0.00056712,120]
[342786479,1732140762212,-500.0,0.00056712,120]
[342786480,1732140762223,-892.8,0.00056712,120]
[342786481,1732140762234,-1436.75,0.00056712,120]
[342786482,1732140762245,-558.99,0.00056712,120]
[342786483,1732140762258,-778.22,0.00056712,120]
[342786484,1732140762267,-1153.44,0.00056712,7]
[342786485,1732140762277,-2548.81,0.00056712,120]
[342786486,1732140762287,-500.0,0.00056712,120]
[342786487,1732140762297,-3675.23,0.00056712,120]
[342786488,1732140762306,-500.0,0.00056712,120]
[342786489,1732140762316,-500.0,0.00056712,120]
[342786490,1732140762327,-500.0,0.00056712,120]
[342786491,1732140762337,-3167.44,0.00056712,120]
[342786492,1732140762348,-2249.83,0.00056712,120]
[342786493,1732140762359,-500.0,0.00056712,120]
[342786494,1732140762368,-500.0,0.00056712,120]
[342786495,1732140762378,-11179.92,0.00056712,21]
[342786496,1732140762387,-500.0,0.00056712,120]
[342786497,1732140762396,-500.0,0.00056712,120]
[342786498,1732140762408,-859.5,0.00056712,120]
[342786499,1732140762418,-245.9644212,0.00056712,120]
[342786500,1732140762427,-3662.75,0.00056712,120]
[342786501,1732140762436,-922.45,0.00056712,120]
[342786502,1732140762446,-500.0,0.00056712,120]
[342786503,1732140762455,-587.4962289,0.00056712,120]
[342786504,1732140762465,-500.0,0.00056712,120]
[342786505,1732140762475,-1994.35,0.00056712,120]
[342786506,1732140762485,-500.0,0.00056712,120]
[342786507,1732140762495,-500.0,0.00056712,120]
[342786508,1732140762504,-1162.72,0.00056712,120]
[342786509,1732140762514,-1363.9,0.00056712,120]
[342786510,1732140762523,-66449.02,0.00056712,5]
[342786511,1732140762534,-1114.06,0.00056712,120]
[342786512,1732140762544,-1815.23,0.00056712,120]
[342786513,1732140762554,-1159.58,0.00056712,120]
[342786514,1732140762564,-500.0,0.00056712,120]
[342786515,1732140762573,-500.0,0.00056712,120]
[342786516,1732140762586,-500.0,0.00056712,120]
[342786517,1732140762595,-2826.01,0.00056712,120]
[342786518,1732140762605,-6111.41,0.00056712,120]
[342786519,1732140762615,-500.0,0.00056712,120]
[342786520,1732140762626,-500.0,0.00056712,120]
[342786521,1732140762636,-1031.65,0.00056712,120]
[342786522,1732140762646,-532.59,0.00056712,120]
[342786523,1732140762655,-754.16,0.00056712,120]
[342786524,1732140762666,-500.0,0.00056712,120]
[342786525,1732140762675,-500.0,0.00056712,120]
[342786526,1732140762685,-553.58,0.00056712,120]
[342786527,1732140762696,-3918.3,0.00056712,120]
[342786528,1732140762706,-500.0,0.00056712,120]
[342786529,1732140762715,-687.41,0.00056712,120]
[342786530,1732140762726,-2233.29,0.00056712,120]
[342786531,1732140762736,-2901.67,0.00056712,120]
[342786532,1732140762747,-500.0,0.00056712,120]
[342786533,1732140762758,-1693.94,0.00056712,120]
[342786534,1732140762768,-1140.89,0.00056712,120]
[342786535,1732140762778,-743.27,0.00056712,120]
[342786536,1732140762788,-884.65,0.00056712,120]
[342786537,1732140762798,-4798.42,0.00056712,120]
[342786538,1732140762807,-500.0,0.00056712,120]
[342786539,1732140762817,-589.18,0.00056712,120]
[342786540,1732140762827,-1609.97,0.00056712,120]
[342786541,1732140762837,-500.0,0.00056712,120]
[342786542,1732140762846,-500.0,0.00056712,120]
[342786543,1732140762856,-548.16,0.00056712,120]
[342786544,1732140762866,-1086.88,0.00056712,120]
[342786545,1732140762876,-4873.91,0.00056712,120]
[342786546,1732140762886,-500.0,0.00056712,120]
[342786547,1732140762896,-1158.88,0.00056712,120]
[342786548,1732140762906,-842.19,0.00056712,120]
[342786549,1732140762916,-725.57,0.00056712,120]
[342786550,1732140762925,-7009.95,0.00056712,120]
[342786551,1732140762935,-500.0,0.00056712,120]
[342786552,1732140762947,-2713.37,0.00056712,120]
[342786553,1732140762957,-500.0,0.00056712,120]
[342786554,1732140762967,-2674.97,0.00056712,120]
[342786555,1732140762977,-1095.19,0.00056712,120]
[342786556,1732140762987,-500.0,0.00056712,120]
[342786557,1732140762998,-3162.29,0.00056712,120]
[342786558,1732140763008,-500.0,0.00056712,120]
[342786559,1732140763017,-500.0,0.00056712,120]
[342786560,1732140763027,-5192.12,0.00056712,120]
[342786561,1732140763037,-6968.45,0.00056712,60]
[342786562,1732140763049,-500.0,0.00056712,120]
[342786563,1732140763059,-500.0,0.00056712,120]
[342786564,1732140763069,-500.0,0.00056712,120]
[342786565,1732140763079,-788.84,0.00056712,120]
[342786566,1732140763089,-500.0,0.00056712,120]
[342786567,1732140763099,-801.02,0.00056712,120]
[342786568,1732140763110,-1135.51,0.00056712,120]
[342786569,1732140763121,-565.84,0.00056712,120]
[342786570,1732140763131,-500.0,0.00056712,120]
[342786571,1732140763141,-736.59,0.00056712,120]
[342786572,1732140763154,-778.41,0.00056712,120]
[342786573,1732140763164,-2123.81,0.00056712,120]
[342786574,1732140763174,-1176.11,0.00056712,120]
[342786575,1732140763184,-500.0,0.00056712,120]
[342786576,1732140763196,-500.0,0.00056712,120]
[342786577,1732140763206,-6444.84,0.00056712,120]
[342786578,1732140763215,-840.5,0.00056712,120]
[342786579,1732140763228,-1149.75,0.00056712,120]
[342786580,1732140763239,-538.19,0.00056712,120]
[342786581,1732140763249,-1918.75,0.00056712,120]
[342786582,1732140763258,-527.39,0.00056712,120]
[342786583,1732140763268,-500.0,0.00056712,120]
[342786584,1732140763277,-846.33,0.00056712,120]
[342786585,1732140763287,-1368.4,0.00056712,120]
[342786586,1732140763296,-1437.44,0.00056712,120]
[342786587,1732140763305,-655.97,0.00056712,120]
[342786588,1732140763315,-613.35,0.00056712,120]
[342786589,1732140763325,-1217.61,0.00056712,120]
[342786590,1732140763335,-7358.45,0.00056712,120]
[342786591,1732140763345,-1149.18,0.00056712,120]
[342786592,1732140763355,-500.0,0.00056712,120]
[342786593,1732140763366,-924.66,0.00056712,120]
[342786594,1732140763377,-1147.11,0.00056712,120]
[342786595,1732140763386,-500.0,0.00056712,120]
[342786596,1732140763396,-1974.94,0.00056712,120]
[342786597,1732140763405,-17457.35,0.00056712,120]
[342786598,1732140763415,-13034.59,0.00056712,120]
[342786599,1732140763425,-2237.64,0.00056712,120]
[342786600,1732140763435,-2737.65,0.00056712,120]
[342786601,1732140763445,-500.0,0.00056712,120]
[342786602,1732140763457,-551.05,0.00056712,120]
[342786603,1732140763467,-2479.1,0.00056712,120]
[342786604,1732140763476,-500.0,0.00056712,120]
[342786605,1732140763486,-500.0,0.00056712,120]
[342786606,1732140763496,-3077.78,0.00056712,120]
[342786607,1732140763505,-500.0,0.00056712,120]
[342786608,1732140763516,-4393.1,0.00056712,120]
[342786609,1732140763525,-656.88,0.00056712,120]
[342786610,1732140763535,-535.35,0.00056712,120]
[342786611,1732140763544,-500.0,0.00056712,120]
[342786612,1732140763554,-1967.61,0.00056712,120]
[342786613,1732140763564,-1550.26,0.00056712,120]
[342786614,1732140763574,-500.0,0.00056712,120]
[342786615,1732140763584,-725.78,0.00056712,120]
[342786616,1732140763593,-996.23,0.00056712,120]
[342786617,1732140763604,-5411.3,0.00056712,120]
[342786618,1732140763614,-501.30141443,0.00056712,120]
[342786619,1732140763624,-500.0,0.00056712,120]
[342786620,1732140763634,-500.0,0.00056712,120]
[342786621,1732140763644,-559.06,0.00056712,120]
[342786622,1732140763654,-1127.77,0.00056712,120]
[342786623,1732140763664,-570.31,0.00056712,120]
[342786624,1732140763674,-500.0,0.00056712,120]
[342786625,1732140763683,-500.0,0.00056712,120]
[342786626,1732140763693,-7043.87,0.00056712,120]
[342786627,1732140763708,-580.25,0.00056712,120]
[342786628,1732140763718,-500.0,0.00056712,120]
[342786629,1732140763727,-8863.78,0.00056712,120]
[342786630,1732140763736,-604.62,0.00056712,120]
[342786631,1732140763746,-1500.0,0.00056712,120]
[342786632,1732140763755,-2040.5,0.00056712,120]
[342786633,1732140763766,-242.55638454,0.00056712,120]
[342786634,1732140763776,-2305.42,0.00056712,120]
[342786635,1732140763785,-500.0,0.00056712,120]
[342786636,1732140763795,-762.69,0.00056712,120]
[342786637,1732140763805,-1604.28,0.00056712,120]
[342786638,1732140763815,-713.08,0.00056712,120]
[342786639,1732140763825,-500.0,0.00056712,120]
[342786640,1732140763834,-500.0,0.00056712,120]
[342786641,1732140763844,-500.0,0.00056712,120]
[342786642,1732140763853,-1101.03,0.00056712,120]
[342786643,1732140763863,-500.0,0.00056712,120]
[342786644,1732140763873,-1320.75,0.00056712,120]
[342786645,1732140763882,-500.0,0.00056712,120]
[342786646,1732140763891,-1100.57,0.00056712,120]
[342786647,1732140763902,-564.06548817,0.00056712,120]
[342786648,1732140763912,-500.0,0.00056712,120]
[342786649,1732140763922,-500.0,0.00056712,120]
[342786650,1732140764033,-5594.76,0.00056712,120]
[342786651,1732140764043,-500.0,0.00056712,120]
[342786652,1732140764053,-561.2,0.00056712,120]
[342786653,1732140764063,-918.38,0.00056712,120]
[342786654,1732140764074,-500.0,0.00056712,120]
[342786655,1732140764085,-3670.68,0.00056712,120]
[342786656,1732140764095,-500.0,0.00056712,120]
[342786657,1732140764106,-503.18237236,0.00056712,120]
[342786658,1732140764116,-2899.566,0.000568,90]
[342786659,1732140764125,-1500.0,0.0005688,120]
[342786660,1732140764135,-1500.0,0.0005688,120]
[342786661,1732140764144,-2699.28181434,0.0005698,80]
[342786662,1732140764160,-500.0,0.00056986,7]
[342786663,1732140764175,-597.23,0.00056986,120]
[342786664,1732140764185,-500.0,0.00056986,120]
[342786665,1732140764194,-500.0,0.00056986,120]
[342786666,1732140764204,-498.59264064,0.00056986,120]
[342786667,1732140764213,-500.0,0.00056986,120]
[342786668,1732140764222,-583.03361567,0.00056986,120]
[342786669,1732140764231,-500.0,0.00056986,120]
[342786670,1732140764240,-218.073558,0.00056986,120]
[342786671,1732140764249,-155.055593,0.00056986,120]
[342786672,1732140764260,-260.413462,0.00056986,120]
[342786673,1732140764269,-210.928221,0.00056986,120]
[342786674,1732140764278,-399.64425098,0.00056986,120]
[342786675,1732140764288,-789.82,0.00056986,120]
[342786676,1732140764297,-907.52,0.00056986,120]
[342786677,1732140764306,-676.32,0.00056986,120]
[342786678,1732140764316,-500.0,0.00056986,120]
[342786679,1732140764325,-500.0,0.00056986,120]
[342786680,1732140764335,-690.77,0.00056986,120]
[342786681,1732140764344,-500.0,0.00056986,120]
[342786682,1732140764354,-500.0,0.00056986,120]
[342786683,1732140764363,-537.28082946,0.00056986,120]
[342786684,1732140764373,-500.0,0.00056986,120]
[342786685,1732140764382,-500.0,0.00056986,120]
[342786686,1732140764393,-500.0,0.00056986,120]
[342786687,1732140764403,-500.0,0.00056986,120]
[342786688,1732140764412,-263.56582275,0.00056986,120]
[342786689,1732140764422,-500.0,0.00056986,30]
[342786690,1732140764432,-500.0,0.00056986,120]
[342786691,1732140764441,-500.0,0.00056986,120]
[342786692,1732140764451,-500.0,0.00056986,120]
[342786693,1732140764460,-802.91,0.00056986,120]
[342786694,1732140764469,-1078.99,0.00056986,120]
[342786695,1732140764478,-500.0,0.00056986,120]
[342786696,1732140764487,-1196.86,0.00056986,120]
[342786697,1732140764497,-1553.66,0.00056986,120]
[342786698,1732140764507,-500.0,0.00056986,120]
[342786699,1732140764516,-500.0,0.00056986,120]
[342786700,1732140764526,-500.0,0.00056986,120]
[342786701,1732140764536,-500.0,0.00056986,120]
[342786702,1732140764545,-1468.02,0.00056986,120]
[342786703,1732140764555,-500.0,0.00056986,120]
[342786704,1732140764564,-1204.33,0.00056986,120]
[342786705,1732140764575,-500.0,0.00056986,120]
[342786706,1732140764584,-500.0,0.00056986,120]
[342786707,1732140764594,-689.54,0.00056986,120]
[342786708,1732140764603,-500.0,0.00056986,120]
[342786709,1732140764613,-500.0,0.00056986,120]
[342786710,1732140764622,-500.0,0.00056986,120]
[342786711,1732140764632,-500.0,0.00056986,120]
[342786712,1732140764642,-500.0,0.00056986,120]
[342786713,1732140764651,-500.0,0.00056986,7]
[342786714,1732140764661,-3362.7,0.00056986,120]
[342786715,1732140764671,-500.0,0.00056986,120]
[342786716,1732140764681,-500.0,0.00056986,120]
[342786717,1732140764690,-297.31575473,0.00056986,120]
[342786718,1732140764701,-2907.27,0.00056986,120]
[342786719,1732140764710,-1034.08,0.00056986,120]
[342786720,1732140764719,-500.0,0.00056986,120]
[342786721,1732140764728,-500.0,0.00056986,120]
[342786722,1732140764737,-500.0,0.00056986,120]
[342786723,1732140764746,-500.0,0.00056986,120]
[342786724,1732140764755,-500.0,0.00056986,120]
[342786725,1732140764765,-500.0,0.00056986,120]
[342786726,1732140764775,-500.0,0.00056986,120]
[342786727,1732140764784,-500.0,0.00056986,120]
[342786728,1732140764794,-1141.42,0.00056986,120]
[342786729,1732140764804,-577.45,0.00056986,120]
[342786730,1732140764815,-691.51,0.00056986,120]
[342786731,1732140764825,-500.0,0.00056986,120]
[342786732,1732140764835,-1067.52,0.00056986,120]
[342786733,1732140764844,-500.0,0.00056986,120]
[342786734,1732140764854,-500.0,0.00056986,120]
[342786735,1732140764863,-1047.06,0.00056986,120]
[342786736,1732140764872,-500.0,0.00056986,120]
[342786737,1732140764882,-500.0,0.00056986,2]
[342786738,1732140764891,-1588.94,0.00056986,120]
[342786739,1732140764900,-500.0,0.00056986,120]
[342786740,1732140764911,-500.0,0.00056986,14]
[342786741,1732140764920,-502.45527702,0.00056986,120]
[342786742,1732140764931,-826.46,0.00056986,120]
[342786743,1732140764942,-500.0,0.00056986,120]
[342786744,1732140764953,-883.47,0.00056986,120]
[342786745,1732140764963,-500.0,0.00056986,120]
[342786746,1732140764973,-500.0,0.00056986,120]
[342786747,1732140764982,-1125.72,0.00056986,120]
[342786748,1732140764992,-500.0,0.00056986,120]
[342786749,1732140765002,-500.0,0.00056986,120]
[342786750,1732140765011,-503.59726571,0.00056986,120]
[342786751,1732140765021,-1116.01,0.00056986,120]
[342786752,1732140765032,-1198.91,0.00056986,120]
[342786753,1732140765041,-500.0,0.00056986,120]
[342786754,1732140765052,-500.0,0.00056986,120]
[342786755,1732140765062,-1410.51,0.00056986,120]
[342786756,1732140765072,-504.50829171,0.00056986,120]
[342786757,1732140765081,-500.0,0.00056986,120]
[342786758,1732140765092,-508.72,0.00056986,120]
[342786759,1732140765101,-500.0,0.00056986,120]
[342786760,1732140765111,-500.0,0.00056986,120]
[342786761,1732140765121,-501.02,0.00056986,120]
[342786762,1732140765131,-500.0,0.00056986,120]
[342786763,1732140765140,-854.5,0.00056986,120]
[342786764,1732140765153,-500.0,0.00056986,120]
[342786765,1732140765163,-923.86,0.00056986,120]
[342786766,1732140765173,-500.0,0.00056986,120]
[342786767,1732140765183,-500.0,0.00056986,60]
[342786768,1732140765193,-1843.46,0.00056986,120]
[342786769,1732140765204,-810.6,0.00056986,120]
[342786770,1732140765213,-500.0,0.00056986,120]
[342786771,1732140765224,-909.22,0.00056986,120]
[342786772,1732140765233,-500.0,0.00056986,120]
[342786773,1732140765243,-500.0,0.00056986,120]
[342786774,1732140765253,-500.0,0.00056986,120]
[342786775,1732140765263,-533.52,0.00056986,120]
[342786776,1732140765273,-500.0,0.00056986,120]
[342786777,1732140765284,-500.0,0.00056986,120]
[342786778,1732140765295,-2415.23,0.00056986,120]
[342786779,1732140765304,-500.0,0.00056986,120]
[342786780,1732140765314,-972.8,0.00056986,120]
[342786781,1732140765324,-1624.46,0.00056986,120]
[342786782,1732140765334,-500.0,0.00056986,120]
[342786783,1732140765345,-530.46,0.00056986,120]
[342786784,1732140765355,-220.56993785,0.00056986,120]
[342786785,1732140765365,-529.22256179,0.00056986,120]
[342786786,1732140765376,-730.89,0.00056986,120]
[342786787,1732140765386,-500.0,0.00056986,60]
[342786788,1732140765396,-500.0,0.00056986,120]
[342786789,1732140765405,-615.39,0.00056986,120]
[342786790,1732140765414,-500.0,0.00056986,120]
[342786791,1732140765423,-500.0,0.00056986,120]
[342786792,1732140765432,-500.0,0.00056986,120]
[342786793,1732140765442,-515.66,0.00056986,120]
[342786794,1732140765452,-500.0,0.00056986,120]
[342786795,1732140765462,-500.0,0.00056986,120]
[342786796,1732140765471,-783.6,0.00056986,120]
[342786797,1732140765480,-1852.69,0.00056986,120]
[342786798,1732140765489,-713.08,0.00056986,120]
[342786799,1732140765499,-524.36,0.00056986,120]
[342786800,1732140765508,-500.0,0.00056986,120]
[342786801,1732140765518,-500.0,0.00056986,120]
[342786802,1732140765528,-500.0,0.00056986,120]
[342786803,1732140765537,-500.0,0.00056986,120]
[342786804,1732140765547,-500.0,0.00056986,120]
[342786805,1732140765556,-729.05,0.00056986,120]
[342786806,1732140765566,-191.808579,0.00056986,120]
[342786807,1732140765575,-500.0,0.00056986,120]
[342786808,1732140765584,-500.0,0.00056986,120]
[342786809,1732140765594,-2435.5,0.00056986,120]
[342786810,1732140765604,-370.24539959,0.00056986,120]
[342786811,1732140765614,-521.8,0.00056986,120]
[342786812,1732140765623,-642.48,0.00056986,120]
[342786813,1732140765633,-849.85,0.00056986,120]
[342786814,1732140765643,-627.45,0.00056986,120]
[342786815,1732140765653,-500.0,0.00056986,120]
[342786816,1732140765664,-742.62,0.00056986,120]
[342786817,1732140765674,-544.91397018,0.00056986,120]
[342786818,1732140765685,-500.0,0.00056986,120]
[342786819,1732140765696,-858.26,0.00056986,120]
[342786820,1732140765707,-500.0,0.00056986,120]
[342786821,1732140765716,-503.51,0.00056986,120]
[342786822,1732140765725,-500.0,0.00056986,120]
[342786823,1732140765734,-2800.08,0.00056986,120]
[342786824,1732140765744,-500.0,0.00056986,120]
[342786825,1732140765754,-500.0,0.00056986,120]
[342786826,1732140765764,-500.0,0.00056986,120]
[342786827,1732140765775,-563.45,0.00056986,120]
[342786828,1732140765786,-500.0,0.00056986,120]
[342786829,1732140765795,-500.0,0.00056986,120]
[342786830,1732140765805,-500.0,0.00056986,120]
[342786831,1732140765815,-1104.08,0.00056986,120]
[342786832,1732140765828,-500.0,0.00056986,120]
[342786833,1732140765837,-500.0,0.00056986,120]
[342786834,1732140765847,-1222.85,0.00056986,120]
[342786835,1732140765859,-500.0,0.00056986,120]
[342786836,1732140765869,-500.0,0.00056986,120]
[342786837,1732140765878,-1021.61,0.00056986,120]
[342786838,1732140765888,-578.33,0.00056986,120]
[342786839,1732140765899,-500.0,0.00056986,120]
[342786840,1732140765909,-500.0,0.00056986,120]
[342786841,1732140765920,-1661.17,0.00056986,120]
[342786842,1732140765930,-500.0,0.00056986,120]
[342786843,1732140765940,-800.14,0.00056986,120]
[342786844,1732140765952,-500.0,0.00056986,120]
[342786845,1732140765961,-1090.19,0.00056986,120]
[342786846,1732140765970,-1054.3,0.00056986,120]
[342786847,1732140765981,-500.0,0.00056986,120]
[342786848,1732140765990,-1209.25,0.00056986,120]
[342786849,1732140766000,-500.0,0.00056986,120]
[342786850,1732140766009,-1127.18,0.00056986,120]
[342786851,1732140766018,-500.0,0.00056986,120]
[342786852,1732140766028,-500.0,0.00056986,120]
[342786853,1732140766037,-500.0,0.00056986,120]
[342786854,1732140766046,-1267.34,0.00056986,120]
[342786855,1732140766056,-2432.38,0.00056986,7]
[342786856,1732140766065,-1560.72,0.00056986,120]
[342786857,1732140766074,-655.09,0.00056986,120]
[342786858,1732140766083,-1047.78,0.00056986,120]
[342786859,1732140766093,-500.0,0.00056986,120]
[342786860,1732140766102,-500.0,0.00056986,120]
[342786861,1732140766111,-500.0,0.00056986,120]
[342786862,1732140766120,-500.0,0.00056986,120]
[342786863,1732140766130,-1376.36,0.00056986,120]
[342786864,1732140766139,-758.47,0.00056986,120]
[342786865,1732140766151,-1218.68,0.00056986,120]
[342786866,1732140766162,-500.0,0.00056986,120]
[342786867,1732140766171,-1031.21,0.00056986,120]
[342786868,1732140766180,-746.97,0.00056986,120]
[342786869,1732140766189,-500.0,0.00056986,120]
[342786870,1732140766201,-1956.13,0.00056986,120]
[342786871,1732140766209,-859.85,0.00056986,120]
[342786872,1732140766219,-1530.02,0.00056986,120]
[342786873,1732140766229,-925.63,0.00056986,120]
[342786874,1732140766238,-626.84,0.00056986,120]
[342786875,1732140766247,-1089.2,0.00056986,120]
[342786876,1732140766256,-500.0,0.00056986,120]
[342786877,1732140766266,-746.22,0.00056986,120]
[342786878,1732140766275,-1753.04,0.00056986,120]
[342786879,1732140766285,-1615.28,0.00056986,120]
[342786880,1732140766294,-750.0,0.00056986,120]
[342786881,1732140766303,-2808.16,0.00056986,120]
[342786882,1732140766313,-500.0,0.00056986,120]
[342786883,1732140766322,-628.55,0.00056986,120]
[342786884,1732140766331,-2720.22,0.00056986,120]
[342786885,1732140766340,-1040.43,0.00056986,120]
[342786886,1732140766350,-679.38,0.00056986,120]
[342786887,1732140766358,-500.0,0.00056986,120]
[342786888,1732140766368,-1140.69,0.00056986,120]
[342786889,1732140766377,-579.85,0.00056986,120]
[342786890,1732140766386,-1233.54,0.00056986,120]
[342786891,1732140766395,-560.33,0.00056986,120]
[342786892,1732140766404,-1241.7,0.00056986,120]
[342786893,1732140766414,-673.6,0.00056986,120]
[342786894,1732140766423,-1595.79,0.00056986,120]
[342786895,1732140766433,-500.0,0.00056986,120]
[342786896,1732140766442,-690.2,0.00056986,120]
[342786897,1732140766452,-500.0,0.00056986,120]
[342786898,1732140766461,-614.35,0.00056986,120]
[342786899,1732140766471,-500.0,0.00056986,120]
[342786900,1732140766481,-1420.27,0.00056986,120]
[342786901,1732140766491,-417.23649362,0.00056986,120]
[342786902,1732140766500,-500.0,0.00056986,120]
[342786903,1732140766509,-500.0,0.00056986,120]
[342786904,1732140766519,-500.0,0.00056986,120]
[342786905,1732140766528,-500.0,0.00056986,120]
[342786906,1732140766538,-500.0,0.00056986,120]
[342786907,1732140766548,-500.0,0.00056986,120]
[342786908,1732140766559,-321.16466271,0.00056986,120]
[342786909,1732140766568,-1747.91,0.00056986,120]
[342786910,1732140766577,-500.0,0.00056986,120]
[342786911,1732140766587,-1026.85,0.00056986,120]
[342786912,1732140766596,-500.0,0.00056986,120]
[342786913,1732140766606,-375.07292789,0.00056986,120]
[342786914,1732140766615,-813.38,0.00056986,120]
[342786915,1732140766624,-1208.59,0.00056986,120]